Workbook

Sheet ĐBDTTS - ĐT
A1: Biểu 02: TÌNH HÌNH TRIỂN KHAI THỰC HIỆN VÀ GIẢI NGÂN CÁC NGUỒN VỐN ĐẦU TƯ CÔNG NĂM 2024 (Kèm theo Báo cáo số 81/BC-PDT ngày 06 tháng 9 năm 2024 của Phòng Dân tộc huyện Tủa Chùa)
J2: Đơn vị tính: Triệu đồng
A3: STT | B3: Danh mục dự án | C3: Dự kiến thời gian KC-HT | D3: Số QĐ đầu tư | E3: Tổng mức đầu tư được duyệt và dự kiến | F3: Lũy kế kế hoạch vốn giao 2024 | G3: KH giao năm 2024 | J3: Giải ngân KHV năm 2024 đến thời điểm hiện nay | M3: Tỷ lệ % tại thời điểm hiện nay so với KH vốn giao năm 2024 | N3: Lũy kế giải ngân đến thời điểm báo cáo đến 2024 | O3: Tỷ lệ % giải ngân lũy kế giải ngân so với lũy kế kế hoạch bố trí vốn | P3: Ghi chú
G4: Tổng số | H4: Kế hoạch vốn được giao 2023 và được phép kéo dài thực hiện sang năm 2024 | I4: Năm 2024 | J4: Tổng số | K4: Giải ngân KH 2022 và được phép kéo dài thực hiện sang năm 2024 | L4: Giải ngân KH Năm 2024
A7: A | B7: Vốn Chương trình MTQG Phát triển kinh tế - xã hội vùng đồng bào dân tộc thiểu số và miền núi (nghị quyết 88) | E7: =E8+E10+E12+E39 -> 160560.6 | F7: 131133 | G7: 67958.91078 | H7: 10998.91078 | I7: 56960 | J7: 33949.33395 | K7: 9835.953779 | L7: 24113.38017 | M7: =J7/G7*100 -> 49.95567698 | N7: =N8+N10+N12+N39 -> 99586.10117 | O7: =+N7/F7 -> 0.759428223
A8: I | B8: Dự án 1 | E8: =E9 -> 2600 | F8: 2499 | G8: 0 | H8: 0 | I8: 0 | J8: 0 | K8: 0 | L8: 0 | N8: =N9 -> 2498.376
A9: 1 | B9: Nước sinh hoạt thôn 3, xã Lao Xả Phình, huyện Tủa Chùa | C9: 2023 | D9: 2939/QĐ-UBND ngày 06/12/2022 | E9: 2600 | F9: 2499 | N9: 2498.376 | O9: =+N9/F9 -> 0.9997503001
A10: II | B10: Dự án 2 | E10: =E11 -> 25662 | F10: 10650 | G10: 10282.624 | H10: 282.624 | I10: 10000 | J10: 5651.359947 | K10: 282.624 | L10: 5368.735947 | M10: =J10/G10*100 -> 54.96028978 | N10: =N11 -> 6018.735947
A11: 1 | B11: Dự án sắp xếp ổn định dân cư bản Huổi Só, xã Huổi Só, huyện Tủa Chùa | C11: 2023-2025 | D11: 1458 ngày 11/9/2023 | E11: 25662 | F11: 10650 | G11: =SUM(H11:I11) -> 10282.624 | H11: 282.624 | I11: 10000 | J11: =K11+L11 -> 5651.359947 | K11: 282.624 | L11: =5087.942307+280.79364 -> 5368.735947 | M11: 54.96028978 | N11: =367.376+J11 -> 6018.735947 | O11: =+N11/F11 -> 0.5651395255
A12: III | B12: Dự án 4 | E12: =SUM(E13:E38) -> 97400.6 | F12: 83319 | G12: 50194.14178 | H12: 6967.141779 | I12: 43227 | J12: 23657.808 | K12: 6175.225779 | L12: 17482.58222 | M12: 47.13260783 | N12: =SUM(N13:N38) -> 59357.34122 | O12: 0.7124106293
A13: 1 | B13: Đường Trung tâm xã Mường Đun - bản Hột | C13: 2021-2024 | D13: 235 ngày 08/02/2022 | E13: 14990 | F13: 14931 | G13: =SUM(H13:I13) -> 2746.836 | H13: 2746.836 | J13: =SUM(K13:L13) -> 2466.146 | K13: 2466.146 | M13: 89.78133387 | N13: 12184.164 | O13: 0.8160313442
A14: 2 | B14: Tuyến đường từ Sính Phình - Trung Thu - Lao Xả Phình - Tả Sìn Thàng (Trung tâm xã Trung Thu đi Bản Phô - Cáng Phình), huyện Tủa Chùa | C14: 2021-2023 | D14: 3229 ngày 14/12/2021 | E14: 20000 | F14: 19820 | G14: 768.543 | H14: 768.543 | J14: =SUM(K14:L14) -> 257.317 | K14: =186.7+70.617 -> 257.317 | M14: 33.48114549 | N14: 19051.457 | O14: 0.9612238648
A15: 3 | B15: Đường Nhù Pông Chua đi thôn 3 xã Sính Phình | C15: 2023-2024 | D15: 2945 ngày 06/12/2022 | E15: 4000 | F15: =2996+I15 -> 4000 | G15: 2172.653779 | H15: 1168.653779 | I15: 1004 | J15: 2056.22 | K15: 1168.653779 | L15: 887.5662208 | M15: 94.64094186 | N15: =1825.484221+J15 -> 3881.704221 | O15: 0.9704260552
A16: 4 | B16: Mở mới tuyến đường từ Đở Áng Đàng đi thôn Phiêng Páng, xã Sính Phình | C16: 2023-2024 | D16: 2946 ngày 6/12/2023 | E16: 3823 | F16: =2110+I16 -> 3823 | G16: 1713 | I16: 1713 | J16: 1596.35 | L16: 1596.35 | M16: 93.1903094 | N16: =2110+J16 -> 3706.35 | O16: 0.9694873136
A17: 5 | B17: Nâng cấp tuyến đường nội thôn Nà Sa từ ông Thào A Lử đến nhà ông Giàng A Hạng, xã Tả Phìn | C17: 2023-2024 | D17: 2947 ngày 06/12/2022 | E17: 4335 | F17: =2335+I17 -> 4135 | G17: 2266.714 | H17: 466.714 | I17: 1800 | J17: 2104.845 | K17: 466.714 | L17: 1638.131 | M17: 92.85886971 | N17: =2068.286+J17 -> 4173.131 | O17: 1.009221524
A18: 6 | B18: Nâng cấp tuyến đường từ trung tâm xã - thông Háng Là, xã Sín Chải | C18: 2023-2024 | D18: 2948 ngày 06/12/2022 | E18: 4.000 | F18: =3000+I18 -> 3950 | G18: 2766.395 | H18: 1816.395 | I18: 950 | J18: 2434.397 | K18: =+H18 -> 1816.395 | L18: =+J18-K18 -> 618.002 | M18: 87.99889387 | N18: =1183.605+J18 -> 3618.002 | O18: 0.9159498734
A19: 7 | B19: Đường giao thông và hệ thống thoát nước bản Huổi só, xã Huổi Só | C19: 2023-2024 | D19: 2940 ngày 06/12/2022 | E19: 9373 | F19: 3000 | G19: 3000 | I19: 3000 | J19: =SUM(K19:L19) -> 233.721 | L19: 233.721 | M19: 7.7907 | N19: =+J19 -> 233.721 | O19: 0.077907
A20: 8 | B20: Cấp nước sinh hoạt bản Huổi só, xã Huổi Só | C20: 2023-2024 | D20: 2941 ngày 06/12/2022 | E20: 2335 | F20: 2300 | G20: 2300 | I20: 2300 | J20: 134.266 | L20: 134.266 | M20: 5.837652174 | N20: 134.266 | O20: 0.05837652174
A21: 9 | B21: Thoát nước thải, vệ sinh môi trường bản Huổi só, xã Huổi Só | C21: 2023-2024 | D21: 2942 ngày 06/12/2022 | E21: 1830 | F21: 1800 | G21: 1800 | I21: 1800 | J21: 89.767 | L21: 89.767 | M21: 4.987055556 | N21: 89.767 | O21: 0.04987055556
A22: 10 | B22: Cấp điện sinh hoạt bản Huổi só, xã Huổi Só | C22: 2023-2024 | D22: 2943 ngày 06/12/2022 | E22: 4060 | F22: 2000 | G22: 2000 | I22: 2000 | J22: 206.942 | L22: 206.942 | M22: 10.3471 | N22: 206.942 | O22: 0.103471
A23: 11 | B23: Hạ tầng thông tin và truyền thông bản Huổi só, xã Huổi Só | C23: 2023-2024 | D23: 2944 ngày 06/12/2022 | E23: 2280 | F23: 2200 | G23: 2200 | I23: 2200 | J23: 0 | L23: 0 | M23: 0 | O23: 0
A24: 12 | B24: Nâng cấp tuyến đường nội thôn Đề Tâu (nhánh từ nhà ông Sùng A Xà đến nhà ông Khu), xã Mường Đun | C24: 2024-2025 | D24: 3054 ngày 15/11/2023 | E24: 2100 | F24: 1500 | G24: 2450 | I24: =1500+950 -> 2450 | J24: 662.932 | L24: 662.932 | M24: 27.05844898 | N24: =+L24 -> 662.932 | O24: 0.4419546667
A25: 13 | B25: Đường giao thông nội thôn Tà Huổi Tráng 1, xã Tủa Thàng | C25: 2024-2025 | D25: 3061 ngày 16/11/2023 | E25: 2300 | F25: 1500 | G25: 2450 | I25: 2450 | J25: 710.903 | L25: 710.903 | M25: 29.01644898 | N25: 710.903 | O25: 0.4739353333
A26: 14 | B26: Nâng cấp, sửa chữa thủy lợi Tà Huổi Tráng 1 đến cánh đồng thôn Tà Huổi Tráng 2, xã Tủa Thàng | C26: 2024-2025 | D26: 3084 ngày 22/11/2023 | E26: 560 | F26: 1000 | G26: 1000 | I26: 1000 | J26: 463.357 | L26: 463.357 | M26: 46.3357 | N26: 463.357 | O26: 0.463357
A27: 15 | B27: Nâng cấp tuyến đường giao thông nội thôn Háng Cu Tâu, xã Trung Thu | C27: 2024-2025 | D27: 3037 ngày 14/11/2023 | E27: 3500 | F27: 1500 | G27: 2700 | I27: =1500+1200 -> 2700 | J27: 1049.546 | L27: 1049.546 | M27: 38.87207407 | N27: 1049.546 | O27: 0.6996973333
A28: 16 | B28: Đường nội thôn Pàng Dề A, xã Xá Nhè | C28: 2024-2025 | D28: 3055 ngày 15/11/2023 | E28: 1700 | F28: 1650 | G28: 1650 | I28: 1650 | J28: 1511.662 | L28: 1511.662 | M28: 91.61587879 | N28: 1511.662 | O28: 0.9161587879
A29: 17 | B29: Nâng cấp tuyến đường nội thôn Bản Hẹ, xã Xá Nhè | C29: 2024-2025 | D29: 3031 ngày 14/11/2023 | E29: 1700 | F29: 1650 | G29: 1650 | I29: 1650 | J29: 562.274 | L29: 562.274 | M29: 34.07721212 | N29: 562.274 | O29: 0.3407721212
A30: 18 | B30: Nâng cấp tuyến đường giao thông cổng thôn văn hóa thôn 3 đến nhà ông Ly Sáu Thanh, xã Lao Xả Phình | C30: 2024-2025 | D30: 3032 ngày 14/11/2023 | E30: 2900 | F30: 1000 | G30: 2000 | I30: =1000+1000 -> 2000 | J30: 913.008 | L30: 913.008 | M30: 45.6504 | N30: 913.008 | O30: 0.913008
A31: 19 | B31: Nâng cấp đường từ nhà ông Ly A Dè ra khu sản xuất Táng Tò thôn 1 xã Lao Xả Phình | C31: 2024-2025 | D31: 3072 ngày 21/11/2023 | E31: 2550 | F31: 1000 | G31: 1000 | I31: 1000 | J31: 811.435 | L31: 811.435 | M31: 81.1435 | N31: 811.435 | O31: 0.811435
A32: 20 | B32: Nâng cấp tuyến đường từ Đợi Khó Sì đi Làng Sảng 2, xã Tả Sìn Thàng | C32: 2024-2025 | D32: 3079 ngày 21/11/2023 | E32: 1500 | F32: 1450 | G32: 1450 | I32: 1450 | J32: 491.472 | L32: 491.472 | M32: 33.89462069 | N32: 491.472 | O32: 0.3389462069
A33: 21 | B33: Đường giao thông nội thôn Quyết Tiến, thị trấn Tủa Chùa | C33: 2024-2025 | D33: 3057 ngày 15/11/2023 | E33: 900 | F33: 1000 | G33: 1000 | I33: 1000 | J33: 796.71 | L33: 796.71 | M33: 79.671 | N33: 796.71 | O33: 0.79671
A34: 22 | B34: Đường ra khu sản xuất thôn Đề Bâu, xã Trung Thu | C34: 2024-2025 | D34: 3034 ngày 14/11/2023 | E34: 1300 | F34: 1270 | G34: 1270 | I34: 1270 | J34: 439.966 | L34: 439.966 | M34: 34.64299213 | N34: 439.966 | O34: 0.3464299213
A35: 23 | B35: Nâng đường nội thôn Háng Tơ Mang, xã Mường Báng | C35: 2024-2025 | D35: 3035 ngày 14/11/2023 | E35: 1500 | F35: 1470 | G35: 1470 | I35: 1470 | J35: 484.777 | L35: 484.777 | M35: 32.97802721 | N35: 484.777 | O35: 0.3297802721
A36: 24 | B36: Công trình thủy lợi thôn Phiêng Bung, xã Mường Báng | C36: 2024-2025 | D36: 3056 ngày 15/11/2023 | E36: 1364.6 | F36: 1470 | G36: 1470 | I36: 1470 | J36: 87.733 | L36: 87.733 | M36: 5.968231293 | N36: 87.733 | O36: 0.05968231293
A37: 25 | B37: Nâng cấp đường nội thôn Tủa Thàng từ nhà ông Giàng sáu Cha đến nhà ông Thào A Súa, xã Tủa Thàng | C37: 2024-2025 | D37: 3036 ngày 14/11/2023 | E37: 1000 | F37: 1900 | G37: 1900 | I37: 1900 | J37: 896.321 | L37: 896.321 | M37: 47.17478947 | N37: 896.321 | O37: 0.4717478947
A38: 26 | B38: Nâng cấp tuyến đường từ Háng Sùa đi Tà Dê, xã Tả Sín Thàng | C38: 2024-2025 | D38: 3058 ngày 16/11/2023 | E38: 5500 | F38: 2000 | G38: 3000 | I38: =2000+1000 -> 3000 | J38: 2195.741 | L38: 2195.741 | M38: 73.19136667 | N38: 2195.741 | O38: 1.0978705
A39: IV | B39: Dự án 5 | E39: =E40+E41+E42+E43 -> 34898 | F39: 34665 | G39: 7482.145 | H39: 3749.145 | I39: 3733 | J39: 4640.166 | K39: 3378.104 | L39: 1262.062 | M39: 62.01652066 | N39: =N40+N41+N42+N43 -> 31711.648 | O39: 0.9148030578
A40: 1 | B40: Bổ sung, nâng cấp các trường Tiểu học và THCS trên địa bàn xã Tủa Thàng | C40: 2021-2023 | D40: 3363 ngày 30/12/2021 | E40: 12853 | F40: 12795 | G40: =SUM(H40:I40) -> 185.836 | H40: 129.836 | I40: 56 | J40: =SUM(K40:L40) -> 55.503 | K40: 55.503 | M40: 29.86665662 | N40: 12609.164 | O40: 0.985475889
A41: 2 | B41: Bổ sung, nâng cấp các trường Tiểu học và THCS trên địa bàn xã Sính Phình | C41: 2021-2023 | D41: 3364 ngày 30/12/2021 | E41: 13200 | F41: 13149 | G41: 171.5 | H41: 115.5 | I41: 56 | J41: 55.87 | K41: 55.87 | M41: 32.57725948 | N41: 12977.5 | O41: 0.9869571831
A42: 3 | B42: Bổ sung, nâng cấp trường Tiểu học và THCS Lao Xả Phình, xã Lao Xả Phình | C42: 2023-2024 | D42: 2950 ngày 06/12/2022 | E42: 4320 | F42: =2500+I42 -> 4244 | G42: 3952.297 | H42: 2208.297 | I42: 1744 | J42: =+K42+L42 -> 2971.219 | K42: =172.829+1798.39 -> 1971.219 | L42: 1000 | M42: 75.17701731 | N42: =291.703+J42 -> 3262.922 | O42: 0.7688317625
A43: 4 | B43: Bổ sung, nâng cấp các trường Tiểu học và THCS trên địa bàn xã Tả Phìn | C43: 2023-2024 | D43: 2951 ngày 06/12/2022 | E43: 4.525 | F43: =2600+I43 -> 4477 | G43: 3172.512 | H43: 1295.512 | I43: 1877 | J43: 1557.574 | K43: 1295.512 | L43: 262.062 | M43: 49.09592147 | N43: =1304.488+J43 -> 2862.062 | O43: 0.6392812151

Sheet SN in
A1: TÌNH HÌNH GIẢI NGÂN VỐN SỰ NGHIỆP CHƯƠNG TRÌNH MTQG PHÁT TRIỂN KT-XH VÙNG ĐỒNG BÀO DÂN TỘC THIỂU SỐ VÀ MIỀN NÚI NĂM 2024 (Kèm theo Báo cáo số 81/BC-PDT ngày 06 tháng 9 năm 2024 của Phòng Dân tộc huyện Tủa Chùa)
I2: Đơn vị tính: Đồng
A3: TT | B3: NỘI DUNG | C3: Tổng giao năm 2024 | D3: DT chuyển nguồn năm trước sang | E3: DT giao năm 2024 | F3: DT giao bổ sung từ nguồn đối ứng NSĐP | G3: Giải ngân 06/9/2024 | H3: Tỷ lệ (%) | I3: Ghi chú
A4: I | B4: Chương trình MTQG Phát triển KT-XH vùng đồng bào dân tộc thiểu số và miền núi | C4: =D4+E4+F4 -> 6.714742081e+10 | D4: =D5+D22+D52+D66+D73+D75+D89+D104 -> 21941268490 | E4: 4.459615232e+10 | F4: 610000000 | G4: 21062402144 | H4: =G4/C4*100 -> 31.36740308
A5: 1 | B5: Dự án 1: Giải quyết tình trạng thiếu đất ở, nhà ở, đất sản xuất và nước sinh hoạt | C5: 7510915000 | D5: =D7+D9 -> 153915000 | E5: =E6+E8 -> 7007000000 | F5: 350000000
A6: - | B6: Hỗ trợ chuyển đổi nghề | C6: =D6+E6 -> 117000000 | D6: =D7 -> 117000000
A7: + | B7: Phòng Dân tộc huyện | C7: 117000000 | D7: 117000000
A8: - | B8: Hỗ trợ nước sinh hoạt phân tán | C8: =D8+E8+F8 -> 7393915000 | D8: =D9 -> 36915000 | E8: =SUM(E10:E21) -> 7007000000 | F8: 350000000
A9: + | B9: Phòng Dân tộc huyện | C9: =D9+E9 -> 36915000 | D9: 36915000
A10: + | B10: UBND Thị Trấn: | C10: 580000000 | E10: 580000000
A11: + | B11: UBND xã Mường Báng | C11: 700000000 | E11: 700000000
A12: + | B12: UBND xã Xá Nhè | C12: 1700000000 | E12: 1700000000
A13: + | B13: UBND xã Mường Đun | C13: 420000000 | E13: 420000000
A14: + | B14: UBND xã Tủa Thàng | C14: 500000000 | E14: 500000000
A15: + | B15: UBND xã Huổi Só | C15: =D15+E15+F15 -> 290000000 | E15: 240000000 | F15: 50000000
A16: + | B16: UBND xã Sính Phình | C16: 947000000 | E16: 847000000 | F16: 100000000
A17: + | B17: UBND xã Trung Thu | C17: 350000000 | E17: 200000000 | F17: 150000000
A18: + | B18: UBND xã Lao Xả Phình | C18: 250000000 | E18: 200000000 | F18: 50000000
A19: + | B19: UBND xã Tả Phìn | C19: =D19+E19 -> 700000000 | E19: 700000000
A20: + | B20: UBND xã Tả Sìn Thàng | C20: 520000000 | E20: 520000000
A21: + | B21: UBND xã Sín Chải: 133 hộ nghèo | C21: 400000000 | E21: 400000000
A22: 2 | B22: Dự án 3: Phát triển sản xuất nông, lâm nghiệp bền vững, phát huy tiềm năng, thế mạnh của các vùng miền để sản xuất hàng hóa theo chuỗi giá trị | C22: 3.526602081e+10 | D22: =D23+D37 -> 12597868491 | E22: 2.266815232e+10 | G22: =G23+G37 -> 18908343790 | H22: =G22/C22*100 -> 53.61632346
A23: - | B23: Tiểu dự án 1: Phát triển kinh tế nông, lâm nghiệp bền vững gắn với bảo vệ rừng và nâng cao thu nhập cho người dân (sự nghiệp kinh tế) | C23: 5018530420 | D23: =SUM(D24:D36) -> 4014530420 | E23: 1004000000 | I23: Đề nghị chuyển nguồn sang dự án khác
A24: - | B24: Phòng Nông nghiệp và PTNT huyện | C24: 929500000 | D24: 929500000
A25: - | B25: UBND thị trấn Tủa Chùa | C25: 319000000 | D25: 280000000 | E25: 39000000
A26: - | B26: UBND xã Mường Báng | C26: 246979220 | D26: 158979220 | E26: 88000000 | I26: Chưa thực hiện
A27: - | B27: UBND xã Xá Nhè | C27: 329451300 | D27: 212451300 | E27: 117000000 | I27: Chưa thực hiện
A28: - | B28: UBND xã Mường Đun | C28: 278000000 | D28: 200000000 | E28: 78000000 | I28: Đề nghị chuyển nguồn sang dự án khác
A29: - | B29: UBND xã Tủa Thàng | C29: 288000000 | D29: 200000000 | E29: 88000000
A30: - | B30: UBND xã Huổi Só | C30: 468000000 | D30: 400000000 | E30: 68000000
A31: - | B31: UBND xã Sính Phình | C31: 526000000 | D31: 400000000 | E31: 126000000
A32: - | B32: UBND xã Trung Thu | C32: 363000000 | D32: 285000000 | E32: 78000000
A33: - | B33: UBND xã Lao Xả Phình | C33: 327664400 | D33: 268664400 | E33: 59000000
A34: - | B34: UBND xã Tả Phìn | C34: 187922250 | D34: 99922250 | E34: 88000000
A35: - | B35: UBND xã Tả Sìn Thàng | C35: 248013250 | D35: 180013250 | E35: 68000000 | I35: Chưa thực hiện
A36: - | B36: UBND xã Sín Chải | C36: 507000000 | D36: 400000000 | E36: 107000000 | I36: Đề nghị chuyển nguồn sang dự án khác
A37: 2.2 | B37: Tiểu dự án 2: Hỗ trợ phát triển sản xuất theo chuỗi giá trị, vùng trồng dược liệu quý, thúc đẩy khởi sự kinh doanh, khởi nghiệp và thu hút đầu tư vùng đồng bào DTTS&MN (sự nghiệp kinh tế) | C37: 3.024749039e+10 | D37: =SUM(D38:D51) -> 8583338071 | E37: 2.166415232e+10 | G37: =G38+G39+G41+G42+G44+G45+G46+G47+G48+G49+G50+G51 -> 18908343790 | H37: =G37/C37*100 -> 62.51210777
A38: - | B38: Phòng Nông nghiệp và Phát triển nông thôn | C38: 5157210360 | D38: 157210360 | E38: 5000000000 | G38: 3245077000 | H38: 62.92310713
A39: - | B39: Trung tâm Dịch vụ nông nghiệp | C39: 5977651100 | D39: 2977651100 | E39: 3000000000 | G39: 5639564500 | H39: 94.34415635
A40: - | B40: UBND Thị Trấn | C40: 534506000 | D40: 4506000 | E40: 530000000
A41: - | B41: UBND xã Mường Báng | C41: 1193000000 | E41: 1193000000 | G41: 463627800 | H41: =G41/C41*100 -> 38.86234702
A42: - | B42: UBND xã Xá Nhè | C42: 2815060000 | D42: 1223060000 | E42: 1592000000 | G42: 600558000 | H42: 21.33375488
A43: - | B43: UBND xã Mường Đun | C43: 1075687500 | D43: 13687500 | E43: 1062000000
A44: - | B44: UBND xã Tủa Thàng | C44: 2047000000 | D44: 854000000 | E44: 1193000000 | G44: 2027510000 | H44: =G44/C44*100 -> 99.04787494
A45: - | B45: UBND xã Huổi só | C45: 936000000 | D45: 7000000 | E45: 929000000 | G45: 907277000 | H45: 96.93130342
A46: - | B46: UBND xã Sính Phình | C46: 2981000000 | D46: 1256000000 | E46: 1725000000 | G46: 1717788900 | H46: 57.62458571
A47: - | B47: UBND xã Trung Thu | C47: 2068000000 | D47: 1006000000 | E47: 1062000000 | G47: 950883500 | H47: 45.98082689
A48: - | B48: UBND xã Lao Xả Phình | C48: 796027597 | D48: 27597 | E48: 796000000 | G48: 768403000 | H48: 96.52969356
A49: - | B49: UBND xã Tả Phìn | C49: 1663560014 | D49: 469560014 | E49: 1194000000 | G49: =1104910800+2800000 -> 1107710800 | H49: 66.58676517
A50: - | B50: UBND xã Tả Sìn Thàng | C50: 933635500 | D50: 4635500 | E50: 929000000 | G50: 878843290 | H50: 94.13130606
A51: - | B51: UBND xã Sín Chải | C51: 2069152318 | D51: 610000000 | E51: 1459152318 | G51: 601100000 | H51: 29.05054378
A52: 3 | B52: Dự án 4: Đầu tư cơ sở hạ tầng thiết yếu, phục vụ sản xuất, đời sống trong vùng đồng bào DTTS&MN và các đơn vị sự nghiệp công nghiệp của lĩnh vực | C52: =D52+E52+F52 -> 4150793600 | D52: =D53 -> 9793600 | E52: 3944000000 | F52: 197000000 | G52: =G53 -> 1454341554 | H52: 35.03767458
A53: 3.1 | B53: Tiểu dự án 1: Đầu tư CSHT thiết yếu, phục vụ sản xuất, đời sống trong vùng đồng bào DTTS&MN (sự nghiệp kinh tế) | C53: 4150793600 | D53: =SUM(D54:D65) -> 9793600 | E53: 3944000000 | F53: 197000000 | G53: =SUM(G54:G65) -> 1454341554 | H53: 35.03767458
A54: - | B54: UBND Thị Trấn | C54: =D54+E54 -> 153314270 | D54: 314270 | E54: 153000000 | I54: Đã nghiệm thu bàn giao đưa vào sử dụng
A55: - | B55: UBND xã Mường Báng | C55: 345429000 | D55: 429000 | E55: 345000000 | G55: 345000000 | H55: =G55/C55*100 -> 99.87580661 | I55: Đã nghiệm thu bàn giao đưa vào sử dụng
A56: - | B56: UBND xã Xá Nhè | C56: 461692284 | D56: 2692284 | E56: 459000000 | G56: 458833607 | H56: 99.38082634 | I56: Đã nghiệm thu bàn giao đưa vào sử dụng
A57: - | B57: UBND xã Mường Đun | C57: 306397119 | D57: 397119 | E57: 306000000 | G57: 305774656 | H57: 99.79684437 | I57: Đã nghiệm thu bàn giao đưa vào sử dụng
A58: - | B58: UBND xã Tủa Thàng | C58: 346253611 | D58: 1253611 | E58: 345000000 | G58: 344733291 | H58: 99.56092299 | I58: Đã nghiệm thu bàn giao đưa vào sử dụng
A59: - | B59: UBND xã Huổi Só | C59: 269905111 | D59: 1905111 | E59: 268000000 | I59: Đang trình thẩm định
A60: - | B60: UBND xã Sính Phình | C60: 498292810 | D60: 292810 | E60: 498000000 | I60: Chuẩn bị thi công
A61: - | B61: UBND xã Trung Thu | C61: =D61+E61+F61 -> 503524337 | D61: 524337 | E61: 306000000 | F61: 197000000 | I61: Chuẩn bị thi công
B62: UBND xã Lao Xả Phình | C62: =D62+E62 -> 230964054 | D62: 964054 | E62: 230000000 | I62: Đang lập hồ sơ dự án
A63: - | B63: UBND xã Tả Phìn | C63: 345249743 | D63: 249743 | E63: =345000000 -> 345000000 | I63: Chuẩn bị thi công
A64: - | B64: UBND xã Tả Sìn Thàng | C64: 268591777 | D64: 591777 | E64: 268000000 | I64: Chuẩn bị thi công
A65: - | B65: UBND xã Sín Chải | C65: 421179484 | D65: 179484 | E65: 421000000 | I65: Đang trình thẩm định
A66: 4 | B66: Dự án 5: Phát triển giáo dục nâng cao chất lượng nguồn nhân lực | C66: 11925511287 | D66: =D67+D70 -> 7042511287 | E66: 4883000000 | G66: =G67+G70 -> 431020000 | H66: =G66/C66*100 -> 3.614268518
A67: 4.1 | B67: Tiểu dự án 2: Bồi dưỡng kiến thức dân tộc, đào tạo dự bị đại học, đại học và sau đại học đáp ứng nhu cầu nhân lực cho vùng đồng bào DTTS&MN(sự nghiệp giáo dục) | C67: 816568300 | D67: =D68+D69 -> 119568300 | E67: 697000000 | G67: =G68+G69 -> 0
A68: - | B68: Phòng Dân tộc huyện | C68: 22920000 | D68: 22920000 | I68: Đã đề nghị chuyển nguồn
A69: - | B69: Phòng Nội vụ huyện | C69: 793648300 | D69: 96648300 | E69: 697000000
A70: 4.2 | B70: Tiểu dự án 3: Dự án phát triển giáo dục nghề nghiệp và giải quyết việc làm cho người lao động vùng DTTS&MN (sự nghiệp giáo dục) | C70: 11108942987 | D70: =D71+D72 -> 6922942987 | E70: 4186000000 | G70: =G71+G72 -> 431020000 | H70: =G70/C70*100 -> 3.879937097
A71: - | B71: Phòng Lao động và Thương binh xã hội | C71: 2729747950 | D71: 2729747950
A72: - | B72: Trung tâm giáo dục nghề nghiệp: Giáo dục thường xuyên huyện: Đào tạo 7 lớp nghề cho 240 học viên | C72: 8379195037 | D72: 4193195037 | E72: 4186000000 | G72: 431020000 | H72: =G72/C72*100 -> 5.143930868
A73: 5 | B73: Dự án 6: Bảo tồn, phát huy giá trị văn hóa truyền thống tốt đẹp của các dân tộc thiểu số gắn với phát triển du lịch (sự nghiệp văn hóa thông tin) | C73: 1957720086 | D73: =D74 -> 125720086 | E73: 1832000000 | G73: 160800000 | H73: 8.21363591
B74: Phòng Văn hóa - Thông tin huyện | C74: 1957720086 | D74: 125720086 | E74: 1832000000 | G74: 160800000 | H74: 8.21363591
A75: 6 | B75: Dự án 8: Thực hiện bình đẳng và giải quyết những vấn đề cấp thiết đối với phụ nữ và trẻ em | C75: 2913841798 | D75: =SUM(D76:D88) -> 1044841798 | E75: 1869000000
A76: - | B76: Hội liên hiệp phụ nữ | C76: 1819541100 | D76: 869541100 | E76: 950000000 | I76: Đang triển khai thực hiện
A77: - | B77: UBND Thị Trấn | C77: 44168200 | D77: 1168200 | E77: 43000000 | I77: Đang triển khai thực hiện
A78: - | B78: UBND xã Mường Báng | C78: 79564474 | D78: 18564474 | E78: 61000000 | I78: Đang triển khai thực hiện
A79: - | B79: UBND xã Xá Nhè | C79: 82570000 | D79: 570000 | E79: 82000000 | I79: Đang triển khai thực hiện
A80: - | B80: UBND xã Mường Đun | C80: 99834331 | D80: 19834331 | E80: 80000000 | I80: Đang triển khai thực hiện
A81: - | B81: UBND xã Tủa Thàng | C81: 88574960 | D81: 8574960 | E81: 80000000 | I81: Đang triển khai thực hiện
A82: - | B82: UBND xã Huổi só | C82: 96713600 | D82: 14713600 | E82: 82000000 | I82: Đang triển khai thực hiện
A83: - | B83: UBND xã Sính Phình | C83: 110439000 | D83: 25439000 | E83: 85000000 | I83: Đang triển khai thực hiện
A84: - | B84: UBND xã Trung Thu | C84: 110933200 | D84: 30933200 | E84: 80000000 | I84: Đang triển khai thực hiện
A85: - | B85: UBND xã Lao Xả Phình | C85: 104794133 | D85: 22794133 | E85: 82000000 | I85: Đang triển khai thực hiện
A86: - | B86: UBND xã Tả Phìn | C86: 80273800 | D86: 273800 | E86: 80000000 | I86: Đang triển khai thực hiện
A87: - | B87: UBND xã Tả Sìn Thàng | C87: 105535000 | D87: 23535000 | E87: 82000000 | I87: Đang triển khai thực hiện
A88: - | B88: UBND xã Sín Chải | C88: 90900000 | D88: 8900000 | E88: 82000000
A89: 7 | B89: Dự án 9: Đầu tư phát triển nhóm dân tộc thiểu số rất ít người và nhóm dân tộc còn nhiều khó khăn | C89: =D89+E89+F89 -> 800781228 | D89: =D90 -> 30781228 | E89: 733000000 | F89: 37000000 | G89: =G90 -> 82646800 | H89: =G89/C89*100 -> 10.32077141
B90: Tiểu dự án 2: Giảm thiểu tình trạng tảo hôn và hôn nhân cận huyết thống trong vùng đồng bào dân tộc thiểu số và miền núi (đảm bảo xã hội) | C90: 800781228 | D90: =SUM(D91:D103) -> 30781228 | E90: 733000000 | F90: =F91 -> 37000000 | G90: =G91+G92+G93+G94+G95+G96+G97+G98+G99+G100+G101+G102+G103 -> 82646800 | H90: 10.32077141
A91: - | B91: Phòng Dân tộc | C91: 459876548 | D91: 14876548 | E91: 408000000 | F91: 37000000 | G91: 30000000 | H91: 6.523489865 | I91: Mua tờ rơi tuyên truyền
A92: - | B92: UBND Thị Trấn | C92: =D92+E92 -> 10059600 | D92: 59600 | E92: 10000000 | I92: Đang triển khai thực hiện
A93: - | B93: UBND xã Mường Báng | C93: 30146800 | D93: 146800 | E93: 30000000 | G93: 30146800 | H93: =G93/C93*100 -> 100 | I93: Tuyên truyền tại 8 thôn ĐBKK
A94: - | B94: UBND xã Xá Nhè | C94: 40000000 | E94: 40000000 | I94: Đang xây dựng dự toán
A95: - | B95: UBND xã Mường Đun | C95: 15386480 | D95: 386480 | E95: 15000000 | I95: Đang xây dựng dự toán
A96: - | B96: UBND xã Tủa Thàng | C96: 30000000 | E96: 30000000 | I96: Đang xây dựng dự toán
A97: - | B97: UBND xã Huổi só | C97: 25078000 | D97: 78000 | E97: 25000000 | I97: Đang xây dựng dự toán
A98: - | B98: UBND xã Sính Phình | C98: 40112000 | D98: 112000 | E98: 40000000 | I98: Đang xây dựng dự toán
A99: - | B99: UBND xã Trung Thu | C99: 31040000 | D99: 6040000 | E99: 25000000 | I99: Đang xây dựng dự toán
A100: - | B100: UBND xã Lao Xả Phình | C100: 20241000 | D100: 241000 | E100: 20000000 | I100: Đang xây dựng dự toán
A101: - | B101: UBND xã Tả Phìn | C101: 30030000 | D101: 30000 | E101: 30000000 | G101: 22500000 | H101: =G101/C101*100 -> 74.92507493 | I101: Tuyên truyền tại 9 thôn ĐBKK
A102: - | B102: UBND xã Tả Sìn Thàng | C102: 33810800 | D102: 8810800 | E102: 25000000 | I102: Đang xây dựng dự toán
A103: - | B103: UBND xã Sín Chải | C103: 35000000 | E103: 35000000 | I103: Đang xây dựng dự toán
A104: 8 | B104: Dự án 10: Truyền thông, tuyên truyền, vận động trong vùng đồng bào DTTS&MN. Kiểm tra, giám sát đánh giá việc tổ chức thực hiện Chương trình | C104: =D104+E104+F104 -> 2621837000 | D104: =D105+D109+D112 -> 935837000 | E104: 1660000000 | F104: 26000000 | G104: =G113 -> 25250000 | H104: =G104/C104*100 -> 0.9630652096
A105: 8.1 | B105: Tiểu dự án 1: Biểu dương, tôn vinh điển hình tiên tiến, phát huy vai trò của người có uy tín; phổ biến, giáo dục pháp luật, trợ giúp pháp lý và tuyên truyền, vận động đồng bào; truyền thông phục vụ tổ chức triển khai thực hiện Đề án tổng thể và Chương trình mục tiêu quốc gia phát triển kinh tế - xã hội vùng đồng bào DTTS và miền núi giai đoạn 2021 - 2030 (sự nghiệp văn hóa thông tin) | C105: 1028606500 | D105: =D106+D107+D108 -> 476606500 | E105: 526000000 | F105: =F106 -> 26000000
A106: + | B106: Phòng Dân tộc | C106: 286000000 | E106: 260000000 | F106: 26000000
A107: + | B107: Phòng Tư Pháp | C107: =D107+E107 -> 266000000 | E107: 266000000
A108: + | B108: Trung tâm văn hóa - truyền thanh - truyền hình | C108: 476606500 | D108: 476606500
A109: 8.2 | B109: Tiểu dự án 2: Ứng dụng công nghệ thông tin hỗ trợ phát triển kinh tế - xã hội và đảm bảo an ninh trật tự vùng đồng bào dân tộc thiểu số và miền núi (sự nghiệp văn hóa thông tin) | C109: 1161000000 | D109: =D110+D111 -> 285000000 | E109: 876000000
A110: - | B110: Phòng Văn hóa thông tin huyện | C110: 876000000 | E110: 876000000
A111: - | B111: Trung tâm văn hóa - truyền thanh - truyền hình | C111: 285000000 | D111: 285000000
A112: 8.3 | B112: Tiểu dự án 3: Kiểm tra, giám sát, đánh giá, đào tạo, tập huấn tổ chức thực hiện Chương trình (sự nghiệp kinh tế) | C112: 432230500 | D112: =SUM(D113:D125) -> 174230500 | E112: 258000000 | F112: 0 | G112: 25250000 | H112: =G112/C112*100 -> 5.841790434
A113: - | B113: Phòng Dân tộc | C113: 300305500 | D113: 162305500 | E113: 138000000 | G113: 25250000 | H113: 8.408104414 | I113: Đang triển khai thực hiện
A114: - | B114: UBND Thị Trấn | C114: 10000000 | E114: 10000000 | I114: Đang triển khai thực hiện
A115: - | B115: UBND xã Mường Báng | C115: 10000000 | E115: 10000000 | I115: Đang triển khai thực hiện
A116: - | B116: UBND xã Xá Nhè | C116: 10003200 | D116: 3200 | E116: 10000000 | I116: Đang triển khai thực hiện
A117: - | B117: UBND xã Mường Đun | C117: 10000000 | E117: 10000000 | I117: Đang triển khai thực hiện
A118: - | B118: UBND xã Tủa Thàng | C118: 10000000 | E118: 10000000 | I118: Đang triển khai thực hiện
A119: - | B119: UBND xã Huổi só | C119: 11920000 | D119: 1920000 | E119: 10000000 | I119: Đang triển khai thực hiện
A120: - | B120: UBND xã Sính Phình | C120: 10001800 | D120: 1800 | E120: 10000000 | I120: Đang triển khai thực hiện
A121: - | B121: UBND xã Trung Thu | C121: 20000000 | D121: 10000000 | E121: 10000000 | I121: Đang triển khai thực hiện
A122: - | B122: UBND xã Lao Xả Phình | C122: 10000000 | E122: 10000000 | I122: Đang triển khai thực hiện
A123: - | B123: UBND xã Tả Phìn | C123: 10000000 | E123: 10000000 | I123: Đang triển khai thực hiện
A124: - | B124: UBND xã Tả Sìn Thàng | C124: 10000000 | E124: 10000000 | I124: Đang triển khai thực hiện
A125: - | B125: UBND xã Sín Chải | C125: 10000000 | E125: 10000000 | I125: Đang triển khai thực hiện
